Cogmind - Beta 13 @@@ ROGUE MODE // 2024.05.22 @ 13:09:16 Player: NQH Result: Destroyed by G-47 Trooper with Particle Gun Performance ------------- Evolutions (2) 1000 Regions Visited (4) 800 Robots Destroyed (51) 255 Value Destroyed (1329) 1329 Prototype IDs (2) 40 Alien Tech Used (0) 0 Bonus (22) 22 TOTAL SCORE: 3446 Bonus ------- High Alert Combat Kills 13 Follower Combat Kills 21 Friendly Fire -12 Cogmind --------- Core Integrity 0/550 Matter 208/300 Energy 99/100 System Corruption 23% Temperature Cool (9) Movement Core (400) Ox7 Location -8/Materials Parts ------- > --- POWER (2) -------- (None) > --- PROPULSION (4) --- (None) > --- UTILITY (3) ------ Large Storage Unit > --- WEAPON (2) ------- Autogun > --- INVENTORY (15) --- Light Treads Hover Unit Hover Unit Terrain Scan Processor Terrain Scan Processor Launcher Guidance Computer Launcher Guidance Computer ECM Suite Autogun Welding Torch Maul Peak State ------------ > --- POWER ------------ Deuterium Engine Light Nuclear Core > --- PROPULSION ------- Improved Aluminum Leg Carbon-fiber Leg Titanium Leg > --- UTILITY ---------- Cryofiber Web Large Storage Unit ECM Suite > --- WEAPON ----------- Heavy EM Shotgun Maul > --- INVENTORY -------- Light Treads Hover Unit Hover Unit Terrain Scan Processor Terrain Scan Processor Launcher Guidance Computer Launcher Guidance Computer ECM Suite Autogun Autogun Welding Torch Maul [Rating: 27] Favorites ----------- Power Light Nuclear Core Engine Light Ion Engine Power Core Light Nuclear Core Propulsion Light Treads Treads Light Treads Leg Aluminum Leg Hover Unit Hover Unit Utility Small Storage Unit Device ECM Suite Storage Small Storage Unit Weapon Assault Rifle Energy Gun Improved EM Shotgun Ballistic Gun Assault Rifle Launcher Shock Bomb Launcher Impact Weapon Maul Build | -11 -10 -10 -9 -8 ------- Run | Yrd Mat Min Mat Mat Slots Evolved 4 | . . . 2 2 Power 1 | . . . . 1 Propulsion 2 | . . . 2 . Utility 1 | . . . . 1 Weapon . | . . . . . Parts Attached 62 | 7 7 1 16 31 Power 9 | 1 2 1 2 3 Engine 6 | 1 1 . 2 2 Core 3 | . 1 1 . 1 Reactor . | . . . . . Propulsion 17 | 2 . . 8 7 Treads 3 | 2 . . 1 . Leg 8 | . . . 4 4 Wheel . | . . . . . Hover 6 | . . . 3 3 Flight . | . . . . . Utility 9 | 1 2 . 1 5 Device 5 | . 2 . 1 2 Storage 4 | 1 . . . 3 Processor . | . . . . . Hackware . | . . . . . Protection . | . . . . . Artifact . | . . . . . Weapon 27 | 3 3 . 5 16 Energy Gun 6 | 1 . . 4 1 Energy Cannon . | . . . . . Ballistic Gun 10 | 2 2 . 1 5 Ballistic Cannon . | . . . . . Launcher 8 | . 1 . . 7 Special Weapon . | . . . . . Impact Weapon 3 | . . . . 3 Slashing Weapon . | . . . . . Piercing Weapon . | . . . . . Special Melee Weapon . | . . . . . Unidentified Prototypes 2 | . . . 1 1 Corrupted Parts 5 | . . . 2 3 System Corruption 33 | . . . 13 20 Parts Lost 29 | . 2 . 8 19 Power 6 | . 1 . 1 4 Propulsion 9 | . . . 4 5 Utility 2 | . . . 1 1 Weapon 12 | . 1 . 2 9 Highest Loss Streak 7 | . 1 . 3 7 To Critical Strikes . | . . . . . Average Slot Usage (%) 76 | . 87 100 76 64 Engine 6 | . 11 4 4 7 Core 4 | . 2 9 5 3 Treads 11 | . 28 28 6 3 Leg 11 | . . . 19 12 Hover 2 | . . . . 6 Device 7 | . 3 14 9 6 Storage 11 | . 14 14 11 9 Energy Gun 6 | . . . 14 3 Ballistic Gun 11 | . 27 28 6 5 Launcher 1 | . . . . 3 Impact Weapon 1 | . . . . 4 Naked Turns . | . . . . . Heaviest Build 44 | 12 15 15 17 44 Greatest Support 55 | 40 40 40 40 55 Greatest Overweight (x) 12 | . . . 2 12 Average Overweight (x) . | . . . . 1 Largest Inventory Capacity 15 | 8 8 8 8 15 Average Capacity 10 | 6 8 8 8 14 Most Carried 15 | 1 5 4 8 15 Average Carried 6 | . 1 2 6 11 Final Capacity 15 | 8 8 8 8 15 Final Carried 11 | . 2 4 8 11 Class Distribution -------------------- 86% | Mutant 13% | Scavenger-Mutant Dominant Class ---------------- Mutant | -10/Materials Mutant | -10/Mines Mutant | -9/Materials Mutant | -8/Materials Resources | -11 -10 -10 -9 -8 ----------- Run | Yrd Mat Min Mat Mat Matter Collected 1055 | 168 343 34 209 301 Remotely 262 | . 129 34 99 . Salvage Created 1705 | . 473 16 632 584 Parts 103 | . 27 1 51 24 Haulers Intercepted . | . . . . . Recyclers Shooed 3 | . 2 . . 1 Parts Field Recycled . | . . . . . Retrieved Matter . | . . . . . Parts Self-Destructed . | . . . . . Prevented . | . . . . . Kills | -11 -10 -10 -9 -8 ------- Run | Yrd Mat Min Mat Mat Combat Hostiles Destroyed 40 | . 8 1 18 13 Melee 4 | . . . . 4 Guns 25 | . 8 1 15 1 AOE 7 | . . . 2 5 Classes Destroyed 10 | . 6 . 2 2 Worker 5 | . 1 . 1 3 Builder 2 | . 2 . . . Recycler 2 | . 2 . . . Operator 1 | . 1 . . . Watcher 1 | . . . 1 . Swarmer 14 | . 1 1 9 3 Grunt 16 | . 7 . 5 4 Brawler 1 | . . . . 1 Sentry 6 | . . . 4 2 Hunter 3 | . . . . 3 Best Kill Streak 9 | . 9 1 4 3 Combat Bots Only 4 | . 2 1 4 3 Max Kills in Single Turn 3 | . 2 1 3 1 Gunslinging 1 | . . . 1 . Exploded 1 | . . . 1 1 Melee 1 | . . . . 1 Uniques/NPCs Destroyed . | . . . . . Combat | -11 -10 -10 -9 -8 -------- Run | Yrd Mat Min Mat Mat Hostile Shots Fired 384 | . 40 7 109 228 Missed 104 | . 20 2 28 54 Damage Taken 3610 | . 417 57 882 2254 Core 796 | . 65 19 156 556 Absorbed by Shields . | . . . . . Core Remaining (%) 75 | 100 . 66 61 . Volleys Fired 107 | . 29 4 41 33 Largest 2 | . 2 2 2 2 Hottest 90 | . 50 40 90 90 Shots Fired 181 | . 55 8 72 46 Gun 167 | . 53 8 72 34 Cannon . | . . . . . Launcher 14 | . 2 . . 12 Special . | . . . . . Kinetic 104 | . 53 8 23 20 Thermal . | . . . . . Explosive 2 | . 2 . . . Electromagnetic 75 | . . . 49 26 Robot Hit Streak 8 | . 8 5 8 8 Robot Miss Streak 5 | . 3 1 5 3 Penetration Max . | . . . . . Secondary Targets 4 | . 1 . 3 . Max Gunslinging Chain 1 | . 1 . 1 . Shots Hit Robots 141 | . 31 6 51 53 Core Hits 84 | . 25 1 34 24 Critical Kills 1 | . . . . 1 Critical Parts Destroyed 5 | . 1 1 . 3 Critical Strikes 6 | . 1 1 . 4 Destroy 2 | . 1 1 . . Smash 4 | . . . . 4 Melee Attacks 27 | . . . . 27 Impact 27 | . . . . 27 Slashing . | . . . . . Piercing . | . . . . . Sneak Attacks 2 | . . . . 2 Combat Hostiles . | . . . . . Follow-up Attacks . | . . . . . Damage Inflicted 3301 | 1 593 70 1005 1632 Guns 1647 | . 423 70 748 406 Cannons . | . . . . . Explosions 1043 | . 170 . 230 643 Melee 562 | . . . . 562 Ramming 49 | 1 . . 27 21 Kinetic 820 | . 423 70 150 177 Thermal 258 | . . . 230 28 Explosive 397 | . 170 . . 227 Electromagnetic 1215 | . . . 598 617 Impact 562 | . . . . 562 Slashing . | . . . . . Piercing . | . . . . . Highest Corruption 23 | . . . 13 23 Average Corruption 14 | . . . 12 15 Corruption Purged . | . . . . . Corruption Blocked . | . . . . . Effects 57 | . . . 22 35 Message Errors 12 | . . . 3 9 Matter Fused 9 | . . . 5 4 Heat Flow Errors 10 | . . . 2 8 Energy Discharges 5 | . . . 3 2 Parts Rejected 1 | . . . . 1 Parts Fused 1 | . . . . 1 Data Loss (minor) 8 | . . . 6 2 Data Loss (major) 4 | . . . . 4 Misfires 1 | . . . 1 . Alerts 2 | . . . 1 1 Misdirections 1 | . . . . 1 Weapon Failures 3 | . . . 1 2 Overload Shots . | . . . . . Overflow Damage 210 | . . . . 210 Projectiles . | . . . . . Explosions 49 | . . . . 49 Melee 161 | . . . . 161 Knockbacks 2 | . . . . 2 Impact 1 | . . . . 1 Kinetic . | . . . . . Secondary 1 | . . . . 1 Self-Inflicted Damage 116 | . . . 18 98 Shots 6 | . . . 1 5 Rammed 1 | 1 . . . . Targets Rammed 29 | 1 . . 18 10 Kicked 28 | . . . 18 10 Crushed . | . . . . . Highest Temperature 251 | . 24 2 218 251 Average Temperature 67 | . 14 2 68 73 Received Heat Transfer 728 | . 138 20 252 318 Effects 1 | . . . . 1 Energy Bleed 1 | . . . . 1 Siege Activations . | . . . . . Robots Corrupted 3 | . . . 1 2 Combat Hostiles 3 | . . . 1 2 Parts Fried 5 | . . . 2 3 Impact Corruptions 7 | . . . . 7 Robots Melted . | . . . . . Combat Hostiles . | . . . . . Parts Melted . | . . . . . Heat Transferred 400 | . . . 350 50 Parts Sabotaged . | . . . . . Parts Stolen . | . . . . . Parts Stripped . | . . . . . Power Chain Reactions 6 | . . . 5 1 Alert | -11 -10 -10 -9 -8 ------- Run | Yrd Mat Min Mat Mat Peak Influence 421 | . 219 41 358 421 Initial 87 | . . 15 6 87 Average 125 | . 84 18 177 141 Maximum Alert Level 2 | . 1 . 1 2 Low Security (%) 75 | 100 84 100 66 69 Level 1 23 | . 15 . 33 28 Level 2 . | . . . . 1 Level 3 . | . . . . . Level 4 . | . . . . . Level 5 . | . . . . . High Security . | . . . . . Max Security . | . . . . . Squads Dispatched 7 | . 2 . 1 4 Investigation 1 | . . . . 1 Extermination . | . . . . . Reinforcement 6 | . 2 . 1 3 Assault . | . . . . . Garrison . | . . . . . Intercept . | . . . . . Searches Triggered . | . . . . . Construction Impeded 1 | . . . . 1 Haulers Reinforced . | . . . . . Active Scanning Responses . | . . . . . Cargo Convoy Interrupts . | . . . . . Stealth | -11 -10 -10 -9 -8 --------- Run | Yrd Mat Min Mat Mat Distress Signals 2 | . 1 . . 1 Communications Jammed . | . . . . . Distress Signals . | . . . . . Times Spotted 59 | . 11 5 23 20 Peak Tracking Total 5 | . 5 3 4 5 Tactical Retreats 3 | . . . . 3 Traps | -11 -10 -10 -9 -8 ------- Run | Yrd Mat Min Mat Mat Traps Triggered 2 | . 1 . . 1 Indirectly . | . . . . . Trap Hack Attempts . | . . . . . Triggered . | . . . . . Disarmed . | . . . . . Reprogrammed . | . . . . . Reused . | . . . . . Traps Extracted . | . . . . . Installed . | . . . . . Triggered . | . . . . . Machines | -11 -10 -10 -9 -8 ---------- Run | Yrd Mat Min Mat Mat Machines Disabled 5 | . . . 3 2 Max in Single Turn 1 | . . . 1 1 Machines Repaired . | . . . . . Machines Dismantled . | . . . . . Machines Sabotaged . | . . . . . Overloaded Fab Kills . | . . . . . Hacking | -11 -10 -10 -9 -8 --------- Run | Yrd Mat Min Mat Mat Machines Accessed 3 | . 2 . 1 . Terminals 3 | . 2 . 1 . Fabricators . | . . . . . Repair Stations . | . . . . . Recycling Units . | . . . . . Scanalyzers . | . . . . . Garrison Access . | . . . . . Total Hacks 5 | . 4 . 1 . Successful 4 | . 3 . 1 . Failed 1 | . 1 . . . Catastrophic . | . . . . . Database Lockouts . | . . . . . Manual . | . . . . . Terminals 5 | . 4 . 1 . Fabricators . | . . . . . Repair Stations . | . . . . . Recycling Units . | . . . . . Scanalyzers . | . . . . . Garrison Access . | . . . . . Terminal Hacks 4 | . 3 . 1 . Record 3 | . 3 . . . Dispatch Records 1 | . . . 1 . Fabricator Hacks . | . . . . . Repair Station Hacks . | . . . . . Recycling Unit Hacks . | . . . . . Scanalyzer . | . . . . . Garrison Access Hacks . | . . . . . Unauthorized Hacks . | . . . . . Terminals . | . . . . . Fabricators . | . . . . . Repair Stations . | . . . . . Recycling Units . | . . . . . Scanalyzers . | . . . . . Garrison Access . | . . . . . Data Cores Recovered . | . . . . . Used . | . . . . . Hacking Detections 1 | . 1 . . . Full Trace Events 1 | . 1 . . . Feedback Events . | . . . . . Feedback Blocked . | . . . . . Robot Schematics Acquired . | . . . . . Robots Built . | . . . . . Authchips . | . . . . . Time . | . . . . . Total Robot Build Rating . | . . . . . Part Schematics Acquired . | . . . . . Parts Built . | . . . . . Authchips . | . . . . . Time . | . . . . . Total Part Build Rating . | . . . . . Parts Repaired . | . . . . . Time . | . . . . . Parts Recycled . | . . . . . Recycled Matter . | . . . . . Retrieved Matter . | . . . . . Retrieved Components . | . . . . . Parts Scanalyzed . | . . . . . Part Schematics Acquired . | . . . . . Parts Damaged . | . . . . . Bothacking | -11 -10 -10 -9 -8 ------------ Run | Yrd Mat Min Mat Mat Used RIF Installer . | . . . . . Robots Hacked . | . . . . . Non-combat . | . . . . . Combat . | . . . . . Robot Hacks Applied . | . . . . . Relay Couplers Released . | . . . . . Fabnet Peak Effective % . | . . . . . Robots Rewired . | . . . . . Allies Hacked . | . . . . . Hacks Repelled . | . . . . . Allies | -11 -10 -10 -9 -8 -------- Run | Yrd Mat Min Mat Mat Total Allies 5 | . . 5 . . Largest Group 5 | . . 5 2 . Highest-Rated Group 85 | . . 85 45 . Highest-Rated Ally 31 | . . 31 31 . Total Orders . | . . . . . Ally Attacks 27 | . . 18 9 . Total Damage 287 | . . 183 104 . Kills 4 | . . 2 2 . Allies Corrupted . | . . . . . Allies Melted . | . . . . . Intel | -11 -10 -10 -9 -8 ------- Run | Yrd Mat Min Mat Mat Robot Analysis Total . | . . . . . Derelict Logs Recovered . | . . . . . Drone Launches . | . . . . . Drone Recoveries . | . . . . . Exploration | -11 -10 -10 -9 -8 ------------- Run | Yrd Mat Min Mat Mat Turns Passed 2506 | 122 496 199 801 888 Spaces Moved 1111 | 71 242 65 405 328 Core 14 | 4 . . . 10 Treads 519 | 67 242 65 139 6 Legs 458 | . . . 256 202 Wheels . | . . . . . Hover 120 | . . . 10 110 Flight . | . . . . . Fastest Speed 50 | 50 160 160 72 72 Average Speed 161 | 153 160 160 141 191 Slowest Speed 650 | 160 160 160 200 650 Overloaded Moves . | . . . . . Propulsion Burnouts . | . . . . . Robots Hopped . | . . . . . Cave-ins Triggered . | . . . . . Exploration Rate (%) 24 | 5 37 14 41 27 Regions Visited 4 Branch Regions 1 Pre-discovered Areas . | . . . . . Known Exits Taken . | . . . . . Unknown Exits Taken 4 | 1 1 1 1 . Scrap Searched . | . . . . . Spaces Dug . | . . . . . Terrain Destroyed 41 | . 13 . 12 16 Melee . | . . . . . Projectile . | . . . . . AOE 41 | . 13 . 12 16 Terrain Rammed . | . . . . . Walls Destroyed . | . . . . . Machines Disabled . | . . . . . Actions | -11 -10 -10 -9 -8 --------- Run | Yrd Mat Min Mat Mat Total 1554 | 80 294 152 551 477 Wait 177 | . 10 79 60 28 Move 1107 | 70 241 64 404 328 Hop . | . . . . . Pick Up 21 | 1 5 3 6 6 Fast Attach 43 | 6 3 . 14 20 Attach 10 | . 2 . 2 6 Detach 4 | . . . . 4 Swap 9 | 1 2 1 . 5 Drop 20 | 1 2 1 6 10 Fire 107 | . 29 4 41 33 Melee 27 | . . . . 27 Ram . | . . . . . Kick 28 | . . . 18 10 Crush 1 | 1 . . . . Escape Stasis . | . . . . . Rewire . | . . . . . Trap . | . . . . . Miscellaneous . | . . . . . Route ------- -11/Scrapyard -10/Materials (discovered 3 exits: *Mat x2 / [*Min]) -10/Mines -9/Materials -8/Materials History --------- Turn | Location | Event 2 | -11/Scrapyard | Discovered new exit (range 16) 123 | -11/Scrapyard | Entered Materials 220 | -10/Materials | Discovered new exit (range 16) 314 | -10/Materials | Build established: Mutant 428 | -10/Materials | Discovered new exit (range 13) 591 | -10/Materials | Discovered new exit (range 12) 619 | -10/Materials | Entered Mines 623 | -10/Mines | Assisted by bots powering up and referring to "LRC-V3" 664 | -10/Mines | Assembled infested the area 711 | -10/Mines | Lost 3 allies 714 | -10/Mines | Discovered new exit (range 12) 818 | -10/Mines | Entered Materials 818 | -9/Materials | Accompanied by 2 allies 818 | -9/Materials | Evolved 2 slots: Propulsion x2 823 | -9/Materials | Led the pair of lost Derelicts to an unsafe place 1035 | -9/Materials | Lost 3 parts (1n2w) 1185 | -9/Materials | System corruption reached 10% 1547 | -9/Materials | Lost 3 parts (3n) 1574 | -9/Materials | Discovered new exit (range 15) 1619 | -9/Materials | Entered another Materials area 1619 | -8/Materials | Evolved 2 slots: Power x1, Utility x1 1762 | -8/Materials | Lost 4 parts (1p1n2w) 2101 | -8/Materials | System corruption reached 10% 2139 | -8/Materials | Lost 3 parts (1p1u1w) 2308 | -8/Materials | Lost 5 parts (1p3n1w) 2349 | -8/Materials | Core integrity fell below 50% 2448 | -8/Materials | Core integrity fell below 20% 2507 | -8/Materials | Destroyed by G-47 Trooper with Particle Gun Last Messages --------------- 02485_ U-05 Engineer lays Concrete. 02486_ R-06 Scavenger collects Corrupted Terrain Scan Processor. 02487_ U-05 Engineer lays Concrete. 02488_ Slug penetrates Wall. 02488_ U-05 Engineer lays Concrete. 02490_ R-06 Scavenger collects Welding Torch. 02491_ Penetrated by Slug. 02491_ U-05 Engineer lays Concrete. 02493_ R-06 Scavenger collects Structural Scanner. 02494_ Penetrated by Slug. 02494_ U-05 Engineer lays Concrete. 02500_ Penetrated by Slug. 02500_ U-05 Engineer lays Concrete. 02504_ Penetrated by Slug. 02504_ Hvy. Assault Rifle destroyed. 02504_ U-05 Engineer lays Concrete. 02505_ U-05 Engineer builds a Wall. 02506_ U-05 Engineer lays Concrete. Map ----- +----------------------------------------------------+ | ?????????????????????????????????????????????????? | | ?????????????????????????????????????????????????? | | ?????????????????????????????????????????????????? | | ?????????????????????????????????????????????????? | | ?????????????????????????????????????????????????? | | ?????????????????????????????????????????????????? | | ?????????????????????????????????????????????????? | | ?????????????????????????????????????????????????? | | ?????????????????????????????????????????????????? | | ?????????????????????????????????????????????????? | | ?????????????????????????? ????????????????????? | | ?????????????????????????# +?????????? ??????? | | ?????????????????????????# #?????????# ####### | | ?????????????????????????# #????????? # # | | ?????????????????????????# #?????????# # # | | ?????????????????????????# #?????????# # ! | | ?????????????????????????# #?????????# # % # | | ?????????????????????????# #?????????# # ![# | | ?????????????????????????# ########### # ! # | | ?????????????????????????# g# ! !## # !!=# | | ????????????????########## # ## # % # | | ????????????????# # # """ ""## # """ # | | ????????????????# # # """ Y"## # """ # | | ????????????????# # # """ ""## # """ # | | ????????????????# #gg # ## # # | | ????????????????# @% #####+##### ###+### | | ????????????????# #h k | | ????????????????# u #u% | | ????????????????# [ # | | ????????????????# u =# t ############# # | | ????????????????##### # #???????????# # | | ?????????????????######### #???????????# # | | ???????????????????###???# #???????????# # | | ?????????????????????????# ????????### # | | ?????????????????????????# ???????# | | ?????????????????????????# ??????# | | ?????????????????????????# ##########??????# | | ?????????????????????????# #???????????????# | | ?????????????????????????# ????????????????# | | ?????????????????????????# ???????????????## | | ?????????????????????????? ???????????????# | | ????????????????????????????????????????????#! | | ????????????????????????????????????????????##!!!! | | ?????????????????????????????????????????????##### | | ?????????????????????????????????????????????????? | | ?????????????????????????????????????????????????? | | ?????????????????????????????????????????????????? | | ?????????????????????????????????????????????????? | | ?????????????????????????????????????????????????? | | ?????????????????????????????????????????????????? | +----------------------------------------------------+ Best States ------------- Heat Dissipation 31 Energy Generation 23 Energy Capacity 335 Matter Stores 300 Matter Capacity 300 Sight Range 16 Terrain Scan Density 10 ECM Strength 1 Base Temperature (-) 100 Evasion (%) 55 Recoil Reduction 2 Item Schematics ----------------- None Robot Schematics ------------------ None Fabricated ------------ Nothing Alien Tech Used ----------------- None Achievements -------------- I Survived The Infestation Challenges ------------ None Game ------ Seed MappingProjectionAccelerator Manual? 0 Play Time 00:19:42 Cumulative 11.2 hours Start 2024.05.22 @ 12:50:42 End 2024.05.22 @ 13:09:16 Sessions 1 Manual Loads 0 Difficulty Rogue Special Mode None Game No. 23 Rogue 23 Adventurer 0 Explorer 0 Win Type - Total 0 Types 0/0/0/0/0/0/0/0/0 Lore% 15 Gallery% 23 Achievement% 18 Wizard Run 0 Options --------- Layout 1 ASCII 0 Keyboard 0 Movement Numpad Keybinds 0 Fullscreen 0 Font 24/Smallcaps Map View 50x35 Zoom Use 0% Tactical HUD 1 Map Filters NONE Filters NONE Steam 1 RUN: bb9de2f2-931a-42c8-90dd-e8fbc5ed1a24